[Event "Titled Tuesday Blitz January 17 Early 2023"]
[White "Boyer, Mahel"]
[Black "Oparin, Grigoriy"]
[WhiteFideId "45102422"]
[BlackFideId "24125890"]
[WhiteElo "2489"]
[BlackElo "2667"]
[Result "0-1"]
[Round "03"]
[TimeControl "180+2"]
[Date "2023.01.17"]
[WhiteClock "0:02:32"]
[BlackClock "0:02:23"]

1. e4 {[%clk 0:02:48]}  c5 {[%clk 0:02:59]} 2. d3 {[%clk 0:02:48]}  Nc6 {[%clk 0:02:59]} 3. g3 {[%clk 0:02:49]}  g6 {[%clk 0:03:00]} 4. Bh6 {[%clk 0:02:49]}  Bxh6 {[%clk 0:02:59]} 5. Bg2 {[%clk 0:02:49]}  Bg7 {[%clk 0:02:58]} 6. c3 {[%clk 0:02:49]}  e6 {[%clk 0:02:58]} 7. f4 {[%clk 0:02:50]}  Nge7 {[%clk 0:02:58]} 8. Nf3 {[%clk 0:02:51]}  Qb6 {[%clk 0:02:56]} 9. O-O {[%clk 0:02:52]}  Qxb2 {[%clk 0:02:56]} 10. Nbd2 {[%clk 0:02:52]}  Qxc3 {[%clk 0:02:56]} 11. Rb1 {[%clk 0:02:52]}  Qxd3 {[%clk 0:02:53]} 12. Re1 {[%clk 0:02:49]}  Nd4 {[%clk 0:02:46]} 13. Ne5 {[%clk 0:02:40]}  Bxe5 {[%clk 0:02:40]} 14. fxe5 {[%clk 0:02:41]}  Nec6 {[%clk 0:02:36]} 15. Rc1 {[%clk 0:02:41]}  Nxe5 {[%clk 0:02:34]} 16. Rxc5 {[%clk 0:02:41]}  Qxd2 {[%clk 0:02:32]} 17. Qxd2 {[%clk 0:02:38]}  Nef3+ {[%clk 0:02:32]} 18. Kf2 {[%clk 0:02:34]}  Nxd2 {[%clk 0:02:32]} 19. Ke3 {[%clk 0:02:35]}  d6 {[%clk 0:02:24]} 20. Rc3 {[%clk 0:02:31]}  Nc6 {[%clk 0:02:23]} 21. Kxd2 {[%clk 0:02:31]}  e5 {[%clk 0:02:23]} 22. Rd3 {[%clk 0:02:31]}  Ke7 {[%clk 0:02:23]} 23. Rxd6 {[%clk 0:02:32]}  Kxd6 {[%clk 0:02:23]} 0-1


[Site "https://www.chess.com"]

[Event "Titled Tuesday Blitz January 17 Early 2023"]
[White "Tristan, Leonardo"]
[Black "Mitrabha, Guha"]
[WhiteFideId "113816"]
[BlackFideId "5057000"]
[WhiteElo "2545"]
[BlackElo "2507"]
[Result "0-1"]
[Round "03"]
[TimeControl "180+2"]
[Date "2023.01.17"]
[WhiteClock "0:02:25"]
[BlackClock "0:02:32"]

1. d4 {[%clk 0:03:00]}  Nf6 {[%clk 0:02:57]} 2. Nf3 {[%clk 0:03:01]}  c5 {[%clk 0:02:57]} 3. c3 {[%clk 0:03:01]}  b6 {[%clk 0:02:56]} 4. Bf4 {[%clk 0:03:00]}  Bb7 {[%clk 0:02:57]} 5. e3 {[%clk 0:02:59]}  g6 {[%clk 0:02:57]} 6. Be2 {[%clk 0:02:57]}  Bg7 {[%clk 0:02:57]} 7. O-O {[%clk 0:02:57]}  O-O {[%clk 0:02:54]} 8. Nbd2 {[%clk 0:02:57]}  d6 {[%clk 0:02:54]} 9. h3 {[%clk 0:02:57]}  Nbd7 {[%clk 0:02:54]} 10. Bh2 {[%clk 0:02:58]}  Ne4 {[%clk 0:02:53]} 11. Nxe4 {[%clk 0:02:56]}  Bxe4 {[%clk 0:02:54]} 12. Nd2 {[%clk 0:02:56]}  Bb7 {[%clk 0:02:55]} 13. a4 {[%clk 0:02:56]}  a6 {[%clk 0:02:54]} 14. Qb3 {[%clk 0:02:45]}  Qc7 {[%clk 0:02:51]} 15. Rfd1 {[%clk 0:02:45]}  Rfc8 {[%clk 0:02:47]} 16. Bc4 {[%clk 0:02:35]}  Rf8 {[%clk 0:02:42]} 17. e4 {[%clk 0:02:28]}  cxd4 {[%clk 0:02:37]} 18. cxd4 {[%clk 0:02:28]}  Bxd4 {[%clk 0:02:37]} 19. Rac1 {[%clk 0:02:27]}  Nc5 {[%clk 0:02:36]} 20. Qf3 {[%clk 0:02:27]}  Bxb2 {[%clk 0:02:35]} 21. Rc2 {[%clk 0:02:26]}  Bg7 {[%clk 0:02:34]} 22. Nb3 {[%clk 0:02:25]}  Bxe4 {[%clk 0:02:32]} 0-1


[Site "https://www.chess.com"]

[Event "Titled Tuesday Blitz January 17 Early 2023"]
[White "Movahed, Sina"]
[Black "Starozhilov, Leonid"]
[WhiteFideId "42520835"]
[BlackFideId "14106752"]
[WhiteElo "2340"]
[BlackElo "2313"]
[Result "1/2-1/2"]
[Round "03"]
[TimeControl "180+2"]
[Date "2023.01.17"]
[WhiteClock "0:00:26"]
[BlackClock "0:00:06"]

1. Nf3 {[%clk 0:03:00]}  Nf6 {[%clk 0:02:59]} 2. c4 {[%clk 0:03:00]}  g6 {[%clk 0:03:00]} 3. b4 {[%clk 0:02:59]}  Bg7 {[%clk 0:02:57]} 4. Bb2 {[%clk 0:02:59]}  O-O {[%clk 0:02:58]} 5. e3 {[%clk 0:02:59]}  d6 {[%clk 0:02:58]} 6. d4 {[%clk 0:02:59]}  c5 {[%clk 0:02:52]} 7. bxc5 {[%clk 0:02:51]}  dxc5 {[%clk 0:02:52]} 8. d5 {[%clk 0:02:51]}  e6 {[%clk 0:02:39]} 9. Nc3 {[%clk 0:02:49]}  exd5 {[%clk 0:02:34]} 10. Nxd5 {[%clk 0:02:44]}  Nxd5 {[%clk 0:02:22]} 11. Bxg7 {[%clk 0:02:44]}  Nxe3 {[%clk 0:02:00]} 12. fxe3 {[%clk 0:02:06]}  Qxd1+ {[%clk 0:01:58]} 13. Rxd1 {[%clk 0:02:05]}  Kxg7 {[%clk 0:01:59]} 14. Bd3 {[%clk 0:02:05]}  Nc6 {[%clk 0:01:57]} 15. Be4 {[%clk 0:02:04]}  Re8 {[%clk 0:01:44]} 16. Bxc6 {[%clk 0:02:03]}  bxc6 {[%clk 0:01:45]} 17. Kf2 {[%clk 0:02:03]}  Be6 {[%clk 0:01:44]} 18. Rd2 {[%clk 0:02:02]}  Rab8 {[%clk 0:01:25]} 19. Rc1 {[%clk 0:01:55]}  Rb4 {[%clk 0:01:25]} 20. Ne5 {[%clk 0:01:53]}  Rc8 {[%clk 0:01:14]} 21. Rc3 {[%clk 0:01:47]}  a5 {[%clk 0:01:04]} 22. a3 {[%clk 0:01:36]}  Rb1 {[%clk 0:00:59]} 23. Nd3 {[%clk 0:01:35]}  Rd8 {[%clk 0:00:52]} 24. e4 {[%clk 0:01:17]}  Rd4 {[%clk 0:00:40]} 25. Ke3 {[%clk 0:01:16]}  Bxc4 {[%clk 0:00:37]} 26. Nxc5 {[%clk 0:01:16]}  Rxd2 {[%clk 0:00:37]} 27. Kxd2 {[%clk 0:01:17]}  Bf1 {[%clk 0:00:25]} 28. g3 {[%clk 0:01:16]}  Rb2+ {[%clk 0:00:24]} 29. Rc2 {[%clk 0:01:11]}  Rxc2+ {[%clk 0:00:24]} 30. Kxc2 {[%clk 0:01:12]}  Kf6 {[%clk 0:00:22]} 31. Kd2 {[%clk 0:01:09]}  Ke5 {[%clk 0:00:19]} 32. Ke3 {[%clk 0:01:10]}  Bb5 {[%clk 0:00:16]} 33. a4 {[%clk 0:01:03]}  Kd6 {[%clk 0:00:14]} 34. Kd4 {[%clk 0:00:57]}  Bf1 {[%clk 0:00:09]} 35. e5+ {[%clk 0:00:57]}  Kc7 {[%clk 0:00:07]} 36. Ne4 {[%clk 0:00:58]}  Kb6 {[%clk 0:00:06]} 37. Nd6 {[%clk 0:00:57]}  c5+ {[%clk 0:00:06]} 38. Kc3 {[%clk 0:00:55]}  Kc6 {[%clk 0:00:06]} 39. Nxf7 {[%clk 0:00:55]}  Kd5 {[%clk 0:00:07]} 40. h4 {[%clk 0:00:52]}  Be2 {[%clk 0:00:07]} 41. Ng5 {[%clk 0:00:50]}  h6 {[%clk 0:00:05]} 42. e6 {[%clk 0:00:50]}  Kd6 {[%clk 0:00:03]} 43. Ne4+ {[%clk 0:00:47]}  Kxe6 {[%clk 0:00:03]} 44. Nxc5+ {[%clk 0:00:47]}  Kf5 {[%clk 0:00:04]} 45. Kd2 {[%clk 0:00:47]}  Bc4 {[%clk 0:00:03]} 46. Ke3 {[%clk 0:00:46]}  g5 {[%clk 0:00:04]} 47. hxg5 {[%clk 0:00:45]}  Kxg5 {[%clk 0:00:04]} 48. Ne4+ {[%clk 0:00:43]}  Kg4 {[%clk 0:00:03]} 49. Kf2 {[%clk 0:00:42]}  Bb3 {[%clk 0:00:04]} 50. Nc5 {[%clk 0:00:42]}  Bc2 {[%clk 0:00:03]} 51. Nb7 {[%clk 0:00:32]}  Bxa4 {[%clk 0:00:03]} 52. Nxa5 {[%clk 0:00:32]}  h5 {[%clk 0:00:04]} 53. Nc4 {[%clk 0:00:26]}  h4 {[%clk 0:00:04]} 54. Ne5+ {[%clk 0:00:26]}  Kf5 {[%clk 0:00:04]} 55. gxh4 {[%clk 0:00:23]}  Kxe5 {[%clk 0:00:04]} 56. h5 {[%clk 0:00:24]}  Be8 {[%clk 0:00:05]} 57. h6 {[%clk 0:00:24]}  Kf6 {[%clk 0:00:05]} 58. h7 {[%clk 0:00:25]}  Kg7 {[%clk 0:00:05]} 59. h8=Q+ {[%clk 0:00:26]}  Kxh8 {[%clk 0:00:06]} 1/2-1/2


[Site "https://www.chess.com"]

[Event "Titled Tuesday Blitz January 17 Early 2023"]
[White "Kovalenko, Igor"]
[Black "Alex_Sahakyan2006"]
[WhiteFideId "14117908"]
[WhiteElo "2674"]
[BlackElo "2675"]
[Result "1-0"]
[Round "03"]
[TimeControl "180+2"]
[Date "2023.01.17"]
[WhiteClock "0:00:46"]
[BlackClock "0:00:01"]

1. d4 {[%clk 0:02:59]}  Nf6 {[%clk 0:02:59]} 2. Nf3 {[%clk 0:02:57]}  g6 {[%clk 0:02:55]} 3. Bg5 {[%clk 0:02:56]}  Bg7 {[%clk 0:02:54]} 4. Nbd2 {[%clk 0:02:56]}  d6 {[%clk 0:02:55]} 5. e3 {[%clk 0:02:56]}  O-O {[%clk 0:02:55]} 6. c3 {[%clk 0:02:56]}  Nbd7 {[%clk 0:02:55]} 7. Bd3 {[%clk 0:02:54]}  e5 {[%clk 0:02:55]} 8. O-O {[%clk 0:02:54]}  Qe8 {[%clk 0:02:55]} 9. Qc2 {[%clk 0:02:53]}  h6 {[%clk 0:02:49]} 10. Bh4 {[%clk 0:02:53]}  Nh5 {[%clk 0:02:49]} 11. g4 {[%clk 0:02:32]}  Nhf6 {[%clk 0:02:47]} 12. h3 {[%clk 0:02:32]}  b6 {[%clk 0:02:25]} 13. Rfe1 {[%clk 0:02:29]}  Bb7 {[%clk 0:02:25]} 14. e4 {[%clk 0:02:26]}  h5 {[%clk 0:02:11]} 15. g5 {[%clk 0:02:19]}  Nh7 {[%clk 0:02:11]} 16. Kh2 {[%clk 0:02:06]}  exd4 {[%clk 0:01:58]} 17. cxd4 {[%clk 0:02:06]}  c5 {[%clk 0:01:59]} 18. Nc4 {[%clk 0:02:02]}  cxd4 {[%clk 0:01:33]} 19. Nxd6 {[%clk 0:02:01]}  Qb8 {[%clk 0:01:28]} 20. Bg3 {[%clk 0:02:01]}  Ne5 {[%clk 0:01:27]} 21. Nxe5 {[%clk 0:01:57]}  Qxd6 {[%clk 0:01:27]} 22. Nxf7 {[%clk 0:01:31]}  Qe7 {[%clk 0:01:18]} 23. Nh6+ {[%clk 0:01:30]}  Kh8 {[%clk 0:01:04]} 24. h4 {[%clk 0:01:30]}  Nxg5 {[%clk 0:01:04]} 25. hxg5 {[%clk 0:01:29]}  Qxg5 {[%clk 0:01:05]} 26. Qc7 {[%clk 0:01:26]}  h4 {[%clk 0:00:44]} 27. Nf7+ {[%clk 0:01:09]}  Rxf7 {[%clk 0:00:43]} 28. Qxf7 {[%clk 0:01:10]}  hxg3+ {[%clk 0:00:43]} 29. Kg2 {[%clk 0:01:05]}  gxf2+ {[%clk 0:00:33]} 30. Kxf2 {[%clk 0:01:06]}  Qh4+ {[%clk 0:00:21]} 31. Kg2 {[%clk 0:01:05]}  Qg4+ {[%clk 0:00:15]} 32. Kf2 {[%clk 0:01:05]}  Qh4+ {[%clk 0:00:14]} 33. Ke2 {[%clk 0:01:05]}  Qh2+ {[%clk 0:00:10]} 34. Qf2 {[%clk 0:00:59]}  Qh5+ {[%clk 0:00:08]} 35. Qf3 {[%clk 0:00:59]}  Qxf3+ {[%clk 0:00:02]} 36. Kxf3 {[%clk 0:00:59]}  Rf8+ {[%clk 0:00:03]} 37. Ke2 {[%clk 0:00:59]}  Be5 {[%clk 0:00:03]} 38. Rf1 {[%clk 0:00:58]}  Rc8 {[%clk 0:00:02]} 39. Rf7 {[%clk 0:00:57]}  Bc6 {[%clk 0:00:02]} 40. Rc1 {[%clk 0:00:51]}  Kg8 {[%clk 0:00:01]} 41. Rxa7 {[%clk 0:00:52]}  g5 {[%clk 0:00:01]} 42. Ba6 {[%clk 0:00:46]} 1-0


[Site "https://www.chess.com"]

[Event "Titled Tuesday Blitz January 17 Early 2023"]
[White "Vlassov, Nikolai"]
[Black "Kravtsiv, Martyn"]
[WhiteFideId "4103360"]
[BlackFideId "14113147"]
[WhiteElo "2283"]
[BlackElo "2598"]
[Result "1/2-1/2"]
[Round "03"]
[TimeControl "180+2"]
[Date "2023.01.17"]
[WhiteClock "0:00:18"]
[BlackClock "0:00:10"]

1. e4 {[%clk 0:02:55]}  e5 {[%clk 0:03:00]} 2. Bc4 {[%clk 0:02:55]}  Nf6 {[%clk 0:02:58]} 3. d3 {[%clk 0:02:55]}  Nc6 {[%clk 0:02:58]} 4. Nf3 {[%clk 0:02:55]}  Bc5 {[%clk 0:02:56]} 5. Bg5 {[%clk 0:02:54]}  h6 {[%clk 0:02:55]} 6. Bh4 {[%clk 0:02:54]}  Be7 {[%clk 0:02:55]} 7. Nc3 {[%clk 0:02:53]}  d6 {[%clk 0:02:55]} 8. Bxf6 {[%clk 0:02:51]}  Bxf6 {[%clk 0:02:54]} 9. Nd5 {[%clk 0:02:51]}  g6 {[%clk 0:02:52]} 10. Nxf6+ {[%clk 0:02:50]}  Qxf6 {[%clk 0:02:53]} 11. h3 {[%clk 0:02:49]}  Na5 {[%clk 0:02:47]} 12. Bd5 {[%clk 0:02:44]}  c6 {[%clk 0:02:45]} 13. Bxf7+ {[%clk 0:02:34]}  Kxf7 {[%clk 0:02:14]} 14. b4 {[%clk 0:02:34]}  b5 {[%clk 0:01:53]} 15. bxa5 {[%clk 0:02:33]}  Kg7 {[%clk 0:01:53]} 16. O-O {[%clk 0:02:30]}  Be6 {[%clk 0:01:52]} 17. Nh2 {[%clk 0:02:26]}  h5 {[%clk 0:01:48]} 18. Qd2 {[%clk 0:02:20]}  c5 {[%clk 0:01:42]} 19. c3 {[%clk 0:02:17]}  Rab8 {[%clk 0:01:38]} 20. f4 {[%clk 0:02:13]}  Rhf8 {[%clk 0:01:18]} 21. fxe5 {[%clk 0:01:59]}  Qxe5 {[%clk 0:01:19]} 22. Nf3 {[%clk 0:01:54]}  Qf4 {[%clk 0:01:03]} 23. Qxf4 {[%clk 0:01:33]}  Rxf4 {[%clk 0:01:04]} 24. Ng5 {[%clk 0:01:33]}  Rxf1+ {[%clk 0:01:04]} 25. Kxf1 {[%clk 0:01:33]}  Bg8 {[%clk 0:01:04]} 26. Ke2 {[%clk 0:01:26]}  b4 {[%clk 0:01:01]} 27. c4 {[%clk 0:01:24]}  b3 {[%clk 0:01:00]} 28. axb3 {[%clk 0:01:23]}  Rxb3 {[%clk 0:00:59]} 29. Ke3 {[%clk 0:01:19]}  Bxc4 {[%clk 0:00:58]} 30. Rd1 {[%clk 0:01:14]}  Kf6 {[%clk 0:00:46]} 31. Nh7+ {[%clk 0:01:10]}  Ke7 {[%clk 0:00:44]} 32. Ng5 {[%clk 0:01:05]}  Ra3 {[%clk 0:00:42]} 33. h4 {[%clk 0:01:02]}  Bb5 {[%clk 0:00:37]} 34. e5 {[%clk 0:00:55]}  dxe5 {[%clk 0:00:24]} 35. Ke4 {[%clk 0:00:55]}  Rxa5 {[%clk 0:00:23]} 36. Rf1 {[%clk 0:00:46]}  Be8 {[%clk 0:00:17]} 37. Kxe5 {[%clk 0:00:41]}  c4+ {[%clk 0:00:17]} 38. Kd4 {[%clk 0:00:42]}  cxd3 {[%clk 0:00:18]} 39. Re1+ {[%clk 0:00:42]}  Kd8 {[%clk 0:00:16]} 40. Ne6+ {[%clk 0:00:40]}  Kc8 {[%clk 0:00:16]} 41. Nc5 {[%clk 0:00:38]}  Bc6 {[%clk 0:00:15]} 42. Nxd3 {[%clk 0:00:35]}  Bxg2 {[%clk 0:00:12]} 43. Rg1 {[%clk 0:00:34]}  Ra4+ {[%clk 0:00:11]} 44. Kc5 {[%clk 0:00:32]}  Rg4 {[%clk 0:00:10]} 45. Ne5 {[%clk 0:00:31]}  Rg3 {[%clk 0:00:10]} 46. Kd6 {[%clk 0:00:29]}  a5 {[%clk 0:00:09]} 47. Rc1+ {[%clk 0:00:29]}  Kb7 {[%clk 0:00:09]} 48. Rb1+ {[%clk 0:00:29]}  Ka6 {[%clk 0:00:10]} 49. Nd7 {[%clk 0:00:28]}  Rd3+ {[%clk 0:00:09]} 50. Kc7 {[%clk 0:00:28]}  Rc3+ {[%clk 0:00:09]} 51. Kd6 {[%clk 0:00:28]}  Rc6+ {[%clk 0:00:10]} 52. Ke5 {[%clk 0:00:28]}  Ka7 {[%clk 0:00:10]} 53. Ra1 {[%clk 0:00:24]}  Ra6 {[%clk 0:00:08]} 54. Nc5 {[%clk 0:00:24]}  Rc6 {[%clk 0:00:08]} 55. Rxa5+ {[%clk 0:00:23]}  Kb6 {[%clk 0:00:08]} 56. Nb3 {[%clk 0:00:23]}  Rc3 {[%clk 0:00:07]} 57. Ra3 {[%clk 0:00:22]}  Bc6 {[%clk 0:00:06]} 58. Nd2 {[%clk 0:00:21]}  Rxa3 {[%clk 0:00:06]} 59. Nc4+ {[%clk 0:00:21]}  Kc5 {[%clk 0:00:06]} 60. Nxa3 {[%clk 0:00:22]}  Ba4 {[%clk 0:00:07]} 61. Kf6 {[%clk 0:00:21]}  Kb4 {[%clk 0:00:07]} 62. Nb1 {[%clk 0:00:19]}  Bc2 {[%clk 0:00:07]} 63. Nd2 {[%clk 0:00:19]}  Kc3 {[%clk 0:00:08]} 64. Nf3 {[%clk 0:00:19]}  Kc4 {[%clk 0:00:08]} 65. Ne5+ {[%clk 0:00:19]}  Kd4 {[%clk 0:00:08]} 66. Nxg6 {[%clk 0:00:19]}  Ke4 {[%clk 0:00:08]} 67. Kg5 {[%clk 0:00:18]}  Kd5 {[%clk 0:00:08]} 68. Nf4+ {[%clk 0:00:16]}  Kd6 {[%clk 0:00:09]} 69. Kxh5 {[%clk 0:00:16]}  Ke7 {[%clk 0:00:09]} 70. Kh6 {[%clk 0:00:16]}  Kf8 {[%clk 0:00:10]} 71. Ng6+ {[%clk 0:00:16]}  Bxg6 {[%clk 0:00:08]} 72. Kxg6 {[%clk 0:00:16]}  Kg8 {[%clk 0:00:09]} 73. h5 {[%clk 0:00:16]}  Kh8 {[%clk 0:00:10]} 74. h6 {[%clk 0:00:17]}  Kg8 {[%clk 0:00:10]} 75. h7+ {[%clk 0:00:17]}  Kh8 {[%clk 0:00:10]} 76. Kh6 {[%clk 0:00:18]} 1/2-1/2


[Site "https://www.chess.com"]

[Event "Titled Tuesday Blitz January 17 Early 2023"]
[White "Babazada, Khazar"]
[Black "Belozerov, Andrei"]
[WhiteFideId "13413554"]
[BlackFideId "4120213"]
[WhiteElo "2474"]
[BlackElo "2461"]
[Result "1-0"]
[Round "03"]
[TimeControl "180+2"]
[Date "2023.01.17"]
[WhiteClock "0:00:47"]
[BlackClock "0:00:10"]

1. c4 {[%clk 0:03:00]}  e6 {[%clk 0:02:58]} 2. Nc3 {[%clk 0:03:01]}  d5 {[%clk 0:02:58]} 3. d4 {[%clk 0:03:01]}  c6 {[%clk 0:02:58]} 4. e3 {[%clk 0:02:59]}  Nf6 {[%clk 0:02:57]} 5. Nf3 {[%clk 0:02:59]}  Nbd7 {[%clk 0:02:58]} 6. Qc2 {[%clk 0:02:57]}  Bd6 {[%clk 0:02:57]} 7. Bd3 {[%clk 0:02:57]}  O-O {[%clk 0:02:56]} 8. O-O {[%clk 0:02:56]}  dxc4 {[%clk 0:02:57]} 9. Bxc4 {[%clk 0:02:56]}  b5 {[%clk 0:02:56]} 10. Be2 {[%clk 0:02:56]}  Bb7 {[%clk 0:02:52]} 11. e4 {[%clk 0:02:52]}  e5 {[%clk 0:02:51]} 12. dxe5 {[%clk 0:02:53]}  Nxe5 {[%clk 0:02:49]} 13. Nh4 {[%clk 0:02:54]}  Re8 {[%clk 0:02:33]} 14. Nf5 {[%clk 0:02:46]}  Bf8 {[%clk 0:02:24]} 15. Rd1 {[%clk 0:02:45]}  Qc7 {[%clk 0:02:21]} 16. Nxb5 {[%clk 0:02:44]}  Qb6 {[%clk 0:02:16]} 17. Nc3 {[%clk 0:02:44]}  c5 {[%clk 0:02:13]} 18. Bg5 {[%clk 0:02:40]}  Neg4 {[%clk 0:01:52]} 19. Bxg4 {[%clk 0:02:26]}  Nxg4 {[%clk 0:01:49]} 20. h3 {[%clk 0:02:27]}  Ne5 {[%clk 0:01:44]} 21. Nd5 {[%clk 0:02:25]}  Bxd5 {[%clk 0:01:41]} 22. Rxd5 {[%clk 0:02:26]}  c4 {[%clk 0:01:39]} 23. Be3 {[%clk 0:02:24]}  Qg6 {[%clk 0:01:37]} 24. Rad1 {[%clk 0:02:24]}  Rac8 {[%clk 0:01:24]} 25. Qc3 {[%clk 0:02:11]}  Nd3 {[%clk 0:01:18]} 26. Ng3 {[%clk 0:01:58]}  a5 {[%clk 0:01:07]} 27. Rg5 {[%clk 0:01:58]}  Qe6 {[%clk 0:01:00]} 28. Nh5 {[%clk 0:01:58]}  Ne5 {[%clk 0:00:50]} 29. Rd5 {[%clk 0:01:48]}  f6 {[%clk 0:00:48]} 30. Rg3 {[%clk 0:01:36]}  Kh8 {[%clk 0:00:42]} 31. Bd4 {[%clk 0:01:32]}  Ng6 {[%clk 0:00:37]} 32. f3 {[%clk 0:01:14]}  Bb4 {[%clk 0:00:35]} 33. Qc1 {[%clk 0:01:13]}  Rc7 {[%clk 0:00:32]} 34. h4 {[%clk 0:01:13]}  Rg8 {[%clk 0:00:25]} 35. Rf5 {[%clk 0:01:06]}  Ne7 {[%clk 0:00:22]} 36. Nf4 {[%clk 0:01:03]}  Qd7 {[%clk 0:00:18]} 37. Rd5 {[%clk 0:00:57]}  Nxd5 {[%clk 0:00:17]} 38. Nxd5 {[%clk 0:00:58]}  Rc6 {[%clk 0:00:18]} 39. h5 {[%clk 0:00:56]}  h6 {[%clk 0:00:17]} 40. Rg6 {[%clk 0:00:53]}  Kh7 {[%clk 0:00:13]} 41. Bxf6 {[%clk 0:00:48]}  Qf7 {[%clk 0:00:13]} 42. Qf4 {[%clk 0:00:45]}  Rxf6 {[%clk 0:00:11]} 43. Nxf6+ {[%clk 0:00:45]}  Kh8 {[%clk 0:00:10]} 44. Rxh6+ {[%clk 0:00:45]}  gxh6 {[%clk 0:00:10]} 45. Qxh6+ {[%clk 0:00:46]}  Qh7 {[%clk 0:00:10]} 46. Qxh7# {[%clk 0:00:47]} 1-0


[Site "https://www.chess.com"]

[Event "Titled Tuesday Blitz January 17 Early 2023"]
[White "Ohanyan, Emin"]
[Black "Szpar, Milosz"]
[WhiteFideId "13312022"]
[BlackFideId "1184989"]
[WhiteElo "2444"]
[BlackElo "2447"]
[Result "0-1"]
[Round "03"]
[TimeControl "180+2"]
[Date "2023.01.17"]
[WhiteClock "0:00:02"]
[BlackClock "0:01:18"]

1. e4 {[%clk 0:03:00]}  c5 {[%clk 0:02:57]} 2. Nf3 {[%clk 0:03:00]}  d6 {[%clk 0:02:49]} 3. d4 {[%clk 0:03:00]}  cxd4 {[%clk 0:02:50]} 4. Nxd4 {[%clk 0:03:01]}  Nf6 {[%clk 0:02:51]} 5. Nc3 {[%clk 0:03:01]}  Nc6 {[%clk 0:02:51]} 6. Bc4 {[%clk 0:03:01]}  Qb6 {[%clk 0:02:51]} 7. Nxc6 {[%clk 0:03:00]}  bxc6 {[%clk 0:02:51]} 8. O-O {[%clk 0:03:00]}  g6 {[%clk 0:02:51]} 9. Bb3 {[%clk 0:03:00]}  Bg7 {[%clk 0:02:51]} 10. Be3 {[%clk 0:03:01]}  Qc7 {[%clk 0:02:51]} 11. f3 {[%clk 0:03:01]}  O-O {[%clk 0:02:51]} 12. Qd2 {[%clk 0:03:02]}  Be6 {[%clk 0:02:51]} 13. Bh6 {[%clk 0:03:02]}  Rab8 {[%clk 0:02:48]} 14. Rfe1 {[%clk 0:02:59]}  Qb6+ {[%clk 0:02:44]} 15. Kh1 {[%clk 0:02:58]}  Nd7 {[%clk 0:02:44]} 16. Bxg7 {[%clk 0:02:57]}  Kxg7 {[%clk 0:02:44]} 17. Ne2 {[%clk 0:02:57]}  Nc5 {[%clk 0:02:43]} 18. Nd4 {[%clk 0:02:54]}  Bd7 {[%clk 0:02:41]} 19. Qc3 {[%clk 0:01:14]}  e5 {[%clk 0:02:38]} 20. Ne2 {[%clk 0:01:14]}  a5 {[%clk 0:02:38]} 21. Rad1 {[%clk 0:01:07]}  a4 {[%clk 0:02:37]} 22. Bc4 {[%clk 0:01:08]}  Qxb2 {[%clk 0:02:24]} 23. Rxd6 {[%clk 0:01:06]}  Qxc3 {[%clk 0:02:24]} 24. Nxc3 {[%clk 0:01:06]}  Rb2 {[%clk 0:02:25]} 25. Nxa4 {[%clk 0:01:05]}  Nxa4 {[%clk 0:02:18]} 26. Rxd7 {[%clk 0:01:01]}  Nc5 {[%clk 0:02:17]} 27. Rd2 {[%clk 0:00:45]}  f5 {[%clk 0:02:14]} 28. exf5 {[%clk 0:00:45]}  gxf5 {[%clk 0:02:14]} 29. Kg1 {[%clk 0:00:42]}  e4 {[%clk 0:02:14]} 30. Kf2 {[%clk 0:00:42]}  Re8 {[%clk 0:02:11]} 31. g3 {[%clk 0:00:32]}  Kf6 {[%clk 0:01:55]} 32. Re3 {[%clk 0:00:25]}  f4 {[%clk 0:01:45]} 33. gxf4 {[%clk 0:00:24]}  Kf5 {[%clk 0:01:46]} 34. fxe4+ {[%clk 0:00:12]}  Rxe4 {[%clk 0:01:27]} 35. Bb3 {[%clk 0:00:05]}  Rxf4+ {[%clk 0:01:21]} 36. Ke2 {[%clk 0:00:06]}  Ne4 {[%clk 0:01:22]} 37. Rd8 {[%clk 0:00:05]}  Rf2+ {[%clk 0:01:20]} 38. Kd3 {[%clk 0:00:05]}  Rd2+ {[%clk 0:01:20]} 39. Kc4 {[%clk 0:00:05]}  Rxd8 {[%clk 0:01:20]} 40. a4 {[%clk 0:00:03]}  Ke5 {[%clk 0:01:18]} 41. a5 {[%clk 0:00:02]}  Rd4# {[%clk 0:01:18]} 0-1


[Site "https://www.chess.com"]

[Event "Titled Tuesday Blitz January 17 Early 2023"]
[White "Skatchkov, Valery"]
[Black "Pultinevicius, Paulius"]
[WhiteFideId "24195812"]
[BlackFideId "12809390"]
[WhiteElo "2167"]
[BlackElo "2537"]
[Result "0-1"]
[Round "03"]
[TimeControl "180+2"]
[Date "2023.01.17"]
[WhiteClock "0:00:08"]
[BlackClock "0:00:04"]

1. d4 {[%clk 0:02:56]}  Nf6 {[%clk 0:02:58]} 2. c4 {[%clk 0:02:56]}  e6 {[%clk 0:02:57]} 3. Nc3 {[%clk 0:02:56]}  Bb4 {[%clk 0:02:56]} 4. a3 {[%clk 0:02:57]}  Bxc3+ {[%clk 0:02:55]} 5. bxc3 {[%clk 0:02:58]}  b6 {[%clk 0:02:51]} 6. f3 {[%clk 0:02:57]}  c5 {[%clk 0:02:50]} 7. e4 {[%clk 0:02:58]}  Nc6 {[%clk 0:02:49]} 8. d5 {[%clk 0:02:49]}  Na5 {[%clk 0:02:19]} 9. Bg5 {[%clk 0:02:37]}  h6 {[%clk 0:02:09]} 10. Bh4 {[%clk 0:02:36]}  d6 {[%clk 0:02:07]} 11. f4 {[%clk 0:02:28]}  g5 {[%clk 0:01:45]} 12. fxg5 {[%clk 0:02:19]}  Nxe4 {[%clk 0:01:44]} 13. Qh5 {[%clk 0:02:06]}  Nxg5 {[%clk 0:01:40]} 14. Nh3 {[%clk 0:02:05]}  Qf6 {[%clk 0:01:28]} 15. Rc1 {[%clk 0:01:43]}  exd5 {[%clk 0:00:40]} 16. Nxg5 {[%clk 0:01:27]}  hxg5 {[%clk 0:00:34]} 17. Qxg5 {[%clk 0:01:28]}  Qxg5 {[%clk 0:00:23]} 18. Bxg5 {[%clk 0:01:29]}  Nxc4 {[%clk 0:00:20]} 19. Bxc4 {[%clk 0:01:10]}  dxc4 {[%clk 0:00:21]} 20. Rd1 {[%clk 0:01:11]}  Kd7 {[%clk 0:00:19]} 21. Bf4 {[%clk 0:01:11]}  Re8+ {[%clk 0:00:17]} 22. Kf2 {[%clk 0:01:11]}  Re6 {[%clk 0:00:18]} 23. Rhe1 {[%clk 0:01:12]}  Rf6 {[%clk 0:00:18]} 24. Kg3 {[%clk 0:01:10]}  Bb7 {[%clk 0:00:18]} 25. Bg5 {[%clk 0:01:10]}  Rg8 {[%clk 0:00:17]} 26. h4 {[%clk 0:01:11]}  Rfg6 {[%clk 0:00:14]} 27. Re7+ {[%clk 0:00:56]}  Kc6 {[%clk 0:00:11]} 28. Rxf7 {[%clk 0:00:57]}  b5 {[%clk 0:00:11]} 29. Kf4 {[%clk 0:00:52]}  a5 {[%clk 0:00:11]} 30. Kf5 {[%clk 0:00:36]}  Bc8+ {[%clk 0:00:10]} 31. Kf4 {[%clk 0:00:35]}  b4 {[%clk 0:00:10]} 32. axb4 {[%clk 0:00:33]}  cxb4 {[%clk 0:00:11]} 33. Rd4 {[%clk 0:00:29]}  Ba6 {[%clk 0:00:09]} 34. Be7 {[%clk 0:00:16]}  Rg4+ {[%clk 0:00:07]} 35. Ke3 {[%clk 0:00:13]}  Rg3+ {[%clk 0:00:06]} 36. Rf3 {[%clk 0:00:13]}  Rxf3+ {[%clk 0:00:05]} 37. Kxf3 {[%clk 0:00:14]}  b3 {[%clk 0:00:05]} 38. Rxd6+ {[%clk 0:00:14]}  Kb5 {[%clk 0:00:05]} 39. Bd8 {[%clk 0:00:08]}  Bb7+ {[%clk 0:00:04]} 40. Ke3 {[%clk 0:00:08]}  Bc6 {[%clk 0:00:03]} 41. Kd2 {[%clk 0:00:07]}  a4 {[%clk 0:00:03]} 42. Bg5 {[%clk 0:00:06]}  a3 {[%clk 0:00:03]} 43. Kc1 {[%clk 0:00:06]}  Rf8 {[%clk 0:00:02]} 44. Rd1 {[%clk 0:00:06]}  Rf2 {[%clk 0:00:03]} 45. Kb1 {[%clk 0:00:06]}  Rb2+ {[%clk 0:00:01]} 46. Ka1 {[%clk 0:00:07]}  Ra2+ {[%clk 0:00:02]} 47. Kb1 {[%clk 0:00:07]}  Be4+ {[%clk 0:00:03]} 48. Kc1 {[%clk 0:00:08]}  b2+ {[%clk 0:00:03]} 49. Kd2 {[%clk 0:00:07]}  b1=Q+ {[%clk 0:00:04]} 50. Ke3 {[%clk 0:00:08]}  Qxd1 {[%clk 0:00:04]} 0-1


[Site "https://www.chess.com"]